bitfinex-derivatives/quotes_ETHF0:USTF0_20250308
["timestamp","ask_amount","ask_price","bid_price","bid_amount"]
[1741408736307,3.8394,2151.4,2151.3,0.92983]
[1741408736707,3.8394,2151.4,2151.2,0.92985]
[1741408737411,4.76921,2151.4,2151.1,0.92989]
[1741408738008,3.8394,2151.4,2151.0,0.6331]
[1741408738203,0.92996,2151.0,2150.9,3.2078]
[1741408738409,3.2078,2151.1,2150.4,6.6064]
[1741408738710,3.2078,2151.1,2150.4,6.9164]
[1741408738918,0.93004,2150.9,2150.6,0.93011]
[1741408739214,0.93006,2150.8,2150.6,0.93011]
[1741408739615,3.2078,2151.1,2150.5,0.93014]
[1741408739816,3.2078,2151.1,2150.4,6.6064]
[1741408739817,0.93017,2150.6,2150.4,6.6064]
[1741408740014,0.93017,2150.6,2150.4,4.5724]
[1741408740212,0.93017,2150.6,2150.4,3.2678]
[1741408740516,3.2078,2150.8,2150.3,0.00697983]
[1741408740720,0.93017,2150.6,2150.3,0.93721983]
[1741408740905,1.54881,2150.7,2150.5,0.93015]
[1741408741507,0.93017,2150.6,2150.3,0.93722983]
[1741408741709,0.6187,2150.7,2150.4,0.93021]
[1741408741910,0.6187,2150.7,2150.6,0.93014]
[1741408742105,2.6994,2150.9,2150.4,3.2078]
[1741408742311,4.2555,2151.2,2150.9,0.92997]
[1741408742510,4.2555,2151.2,2150.5,3.58825]
[1741408742818,3.3256,2151.2,2150.5,1.5528]
[1741408743017,0.92994,2151.1,2150.5,1.5528]
[1741408743222,0.92999,2151.0,2150.5,1.5528]
[1741408743419,0.92999,2151.0,2150.7,0.93007]
[1741408743719,0.92999,2151.0,2150.7,0.03]
[1741408743919,0.92999,2151.0,2150.8,0.93004]
[1741408744423,0.92993,2151.1,2150.9,0.93]
[1741408744618,0.6076,2151.2,2150.7,3.2078]
[1741408744812,0.6507,2151.4,2151.3,0.92983]
[1741408745119,1.5805,2151.4,2151.1,0.92988]
[1741408745417,1.5805,2151.4,2151.2,0.92987]
[1741408745621,0.6507,2151.4,2150.8,0.6103]
[1741408745918,0.92988,2151.2,2151.0,0.92995]
[1741408746615,0.92988,2151.2,2150.9,0.92998]
[1741408746815,0.6507,2151.4,2150.9,0.03]
[1741408747116,0.92988,2151.2,2150.9,0.03]
[1741408747317,0.92988,2151.2,2150.9,0.95998]
[1741408747513,0.92995,2151.1,2150.9,0.03]
[1741408747817,0.92989,2151.2,2151.0,0.92996]
[1741408748016,0.6507,2151.4,2150.7,3.2078]
[1741408748227,0.92985,2151.3,2151.1,0.9299]
[1741408748725,0.92983,2151.3,2151.0,0.92992]
[1741408748913,0.92986,2151.3,2151.0,0.92992]
[1741408749113,0.92994,2151.1,2150.9,0.92999]
[1741408749322,0.6507,2151.4,2150.9,0.05]
[1741408749619,0.92985,2151.3,2151.1,0.92992]
[1741408750008,0.92985,2151.3,2151.1,0.92991]
[1741408750213,0.92989,2151.2,2151.0,0.92995]
[1741408750409,0.92985,2151.3,2151.1,0.92991]
[1741408751415,0.92988,2151.2,2151.0,0.92995]
[1741408751620,0.6507,2151.4,2150.7,3.2078]
[1741408751828,0.92986,2151.3,2151.1,0.92992]
[1741408752015,0.6507,2151.4,2150.7,3.4878]
[1741408752016,0.6507,2151.4,2150.7,3.2078]
[1741408752221,0.6507,2151.4,2151.0,3.2078]
[1741408752422,0.92992,2151.1,2151.0,3.2078]
[1741408752719,0.92989,2151.2,2151.0,4.13775]
[1741408752921,0.92992,2151.1,2151.0,3.2078]
[1741408753317,0.6507,2151.4,2150.7,3.2078]
[1741408753520,0.9299,2151.2,2150.7,3.4078]
[1741408753717,0.6507,2151.4,2150.7,3.4078]
[1741408754117,0.9299,2151.2,2151.0,0.92995]
[1741408754316,0.6507,2151.4,2150.7,3.2078]
[1741408754516,0.92994,2151.1,2150.9,0.92999]
[1741408754720,0.92994,2151.1,2150.9,0.95999]
[1741408754916,0.92996,2151.0,2150.9,0.03]
[1741408755120,2.097,2151.1,2150.5,1.2628]
[1741408755429,2.097,2151.1,2150.4,3.2078]
[1741408755430,4.5205,2150.9,2150.4,3.2078]
[1741408755625,4.5205,2150.9,2150.1,1.57954]
[1741408755626,0.93022,2150.4,2150.1,1.57954]
[1741408756023,0.93022,2150.4,2150.1,0.6492]
[1741408756623,0.93022,2150.4,2150.0,3.2078]
[1741408756821,1.54572,2150.4,2150.0,3.2078]
[1741408757423,1.54572,2150.4,2150.1,0.93032]
[1741408757829,1.54572,2150.4,2150.1,0.93035]
[1741408758123,1.54572,2150.4,2150.0,3.2078]
[1741408758925,1.54572,2150.4,2150.0,4.13818]
[1741408759828,1.54572,2150.4,2150.1,0.93032]
[1741408760022,0.6155,2150.4,2150.0,3.2078]
[1741408760222,0.6155,2150.4,2150.2,0.93029]
[1741408760427,1.54572,2150.4,2150.1,0.93033]
[1741408761523,0.6164,2150.5,2150.0,3.2078]
[1741408761720,1.5466,2150.5,2150.0,3.2078]
[1741408761921,1.5466,2150.5,2150.1,1.2495]
[1741408762125,4.78942,2150.9,2150.3,3.30477983]
[1741408762426,3.8594,2150.9,2150.6,0.93009]
[1741408762730,0.93007,2150.8,2150.6,0.93009]
[1741408762924,4.78943,2150.9,2150.6,0.93009]
[1741408763124,4.78943,2150.9,2150.8,0.93005]
[1741408763125,3.2078,2150.9,2150.8,0.93005]
[1741408764231,4.13782,2150.9,2150.7,2.19418]
[1741408764427,4.13782,2150.9,2150.7,0.6232]
[1741408764626,3.2078,2150.9,2150.7,1.55327]
[1741408764928,4.13783,2150.9,2150.7,0.6232]
[1741408765325,4.13783,2150.9,2150.7,0.6332]
[1741408765628,4.13783,2150.9,2150.7,1.56329]
[1741408765629,4.13782,2150.9,2150.7,1.56329]
[1741408765831,4.13782,2150.9,2150.7,1.55329]
[1741408766427,3.2078,2150.9,2150.8,0.93005]
[1741408766829,4.13781,2150.9,2150.7,1.55328]
[1741408767020,3.2078,2150.9,2150.7,1.55328]
[1741408767224,3.2078,2150.9,2150.8,0.93005]
[1741408767430,3.2078,2150.9,2150.7,0.6232]
[1741408767630,3.2078,2150.9,2150.7,1.55327]
[1741408768327,3.2078,2150.9,2150.8,0.93005]
[1741408768522,4.4699,2151.3,2150.7,0.6232]
[1741408768724,4.4699,2151.3,2150.7,0.8032]
[1741408768924,0.92991,2151.2,2150.9,0.92998]
[1741408769424,5.39975,2151.3,2150.7,0.6232]
[1741408769632,0.92988,2151.2,2151.0,0.92994]
[1741408769926,4.4699,2151.3,2151.2,0.92988]
[1741408769927,3.2078,2151.3,2151.2,0.92988]
[1741408770330,3.2078,2151.3,2151.2,0.94988]
[1741408771430,0.00697983,2151.5,2151.4,0.92979]
[1741408774733,0.00697983,2151.5,2151.4,0.93979]
[1741408775329,3.2078,2151.8,2151.7,0.92966]
[1741408775541,3.2078,2151.8,2151.5,2.16253]
[1741408775835,3.2078,2151.8,2151.5,2.18253]
[1741408776133,3.2078,2151.8,2151.5,1.2528]
[1741408776332,0.9297,2151.6,2151.5,1.2328]
[1741408776530,0.9297,2151.6,2151.5,0.6179]
[1741408777630,0.92968,2151.7,2151.5,0.6179]
[1741408777825,4.80474,2151.8,2151.5,1.54764]
[1741408778025,4.80474,2151.8,2151.5,0.6179]
[1741408778226,3.8751,2151.8,2151.5,0.6179]
[1741408778431,4.80476,2151.8,2151.5,0.6179]
[1741408778634,3.2078,2151.8,2151.5,0.6379]
[1741408779235,3.2078,2151.8,2151.5,1.5676]
[1741408779733,3.2078,2151.8,2151.6,0.92967]
[1741408779934,3.2078,2151.8,2151.6,0.6751]
[1741408780234,4.13742,2151.8,2151.6,0.6751]
[1741408780436,3.2078,2151.8,2151.6,0.6751]
[1741408780633,3.2078,2151.8,2151.7,0.92966]
[1741408780938,4.77972,2152.1,2151.8,0.92959]
[1741408781128,3.2078,2152.1,2151.6,5.9649]
[1741408781324,3.2078,2152.1,2151.9,0.92956]
[1741408781525,3.2078,2152.1,2152.0,1.57853]
[1741408781826,3.2078,2152.1,2152.0,0.649]
[1741408782030,3.2078,2152.1,2152.0,1.57853]
[1741408782228,3.8502,2152.5,2152.0,0.649]
[1741408782426,2.983,2153.2,2152.3,3.2078]
[1741408782427,3.2078,2152.9,2152.3,3.2078]
[1741408782731,3.58638604,2153.5,2152.6,3.2078]
[1741408782926,3.58638604,2153.5,2152.9,3.2078]
[1741408782927,0.9291,2153.0,2152.9,3.2078]
[1741408783236,2.32243,2153.3,2152.6,3.2078]
[1741408783437,0.9291,2153.0,2152.9,3.2078]
[1741408783637,0.92923,2152.7,2152.6,3.2078]
[1741408784137,0.92922,2152.8,2152.6,3.2078]
[1741408784336,0.92921,2152.8,2152.6,3.2078]
[1741408784535,0.6443,2152.9,2152.6,3.2078]
[1741408784933,0.92923,2152.7,2152.6,3.2078]
[1741408793041,1.274,2152.8,2152.6,3.2078]
[1741408793338,0.92923,2152.7,2152.6,3.2078]
[1741408794651,1.274,2152.8,2152.6,3.2078]
[1741408794852,0.92923,2152.7,2152.6,3.2078]
[1741408795053,2.2032,2152.8,2152.6,3.2078]
[1741408795353,0.92923,2152.7,2152.6,3.2078]
[1741408795646,1.274,2152.8,2152.6,3.2078]
[1741408795860,1.57346,2152.9,2152.7,0.92923]
[1741408796243,1.2481,2153.1,2152.6,3.8578]
[1741408796443,0.92911,2153.0,2152.9,3.2078]
[1741408797745,2.17718,2153.1,2152.9,3.2078]
[1741408797955,0.6125,2153.1,2152.9,3.2078]
[1741408798147,0.6301,2153.3,2152.9,3.2078]
[1741408798354,0.92911,2153.0,2152.8,0.92917]
[1741408798655,0.92911,2153.0,2152.9,3.2078]
[1741408801353,0.9291,2153.0,2152.9,3.2078]
[1741408803160,0.9291,2153.0,2152.6,3.2078]
[1741408803161,2.32284,2153.0,2152.6,3.2078]
[1741408803358,0.6285,2152.9,2152.6,3.2078]
[1741408803558,0.6203,2152.8,2152.6,3.2078]
[1741408803758,0.92923,2152.7,2152.6,3.2078]
[1741408805762,0.92923,2152.7,2152.4,0.00697983]
[1741408805763,0.92931,2152.5,2152.4,0.00697983]
[1741408805964,0.92953,2152.0,2151.9,3.2078]
[1741408806466,0.92966,2151.7,2151.6,3.2078]
[1741408807656,1.55216,2151.7,2151.6,3.2078]
[1741408808360,0.6225,2151.7,2151.6,3.2078]
[1741408808762,1.55216,2151.7,2151.6,3.2078]
[1741408809571,0.6225,2151.7,2151.4,0.00697983]
[1741408809773,0.92975,2151.5,2151.4,0.00697983]
[1741408810066,0.6225,2151.7,2151.4,0.00697983]
[1741408810463,1.55218,2151.7,2151.4,0.64507983]
[1741408810765,0.92968,2151.7,2151.6,3.2078]
[1741408811761,0.6378,2151.8,2151.6,3.2078]
[1741408812260,0.92966,2151.7,2151.6,3.2078]
[1741408813775,2.11197983,2151.9,2151.6,3.2078]
[1741408814072,0.92966,2151.7,2151.6,3.2078]
[1741408814566,0.00697983,2151.9,2151.6,3.2078]
[1741408814771,0.00697983,2151.9,2151.6,4.13748]
[1741408814969,0.00697983,2151.9,2151.7,0.92963]
[1741408815178,0.00697983,2151.9,2151.6,3.2078]
[1741408815368,0.00697983,2151.9,2151.6,3.2878]
[1741408815563,0.00697983,2151.9,2151.6,4.21749]
[1741408815767,0.93657983,2151.9,2151.6,3.2878]
[1741408816375,0.93656983,2151.9,2151.6,4.21749]
[1741408816573,0.00697983,2151.9,2151.6,4.21749]
[1741408817278,0.93655983,2151.9,2151.6,4.21749]
[1741408817881,0.00697983,2151.9,2151.7,0.92966]
[1741408818073,0.00697983,2151.9,2151.8,0.6131]
[1741408818273,0.93654983,2151.9,2151.8,0.6131]
[1741408818879,0.92966,2151.7,2151.6,3.2078]
[1741408822878,0.92982,2151.4,2151.1,0.9299]
[1741408823074,0.92973,2151.6,2151.3,1.58221]
[1741408823276,0.92974,2151.6,2151.3,4.79002]
[1741408823874,1.8535,2151.8,2151.3,4.79002]
[1741408824073,1.8535,2151.8,2151.3,3.8602]
[1741408824380,1.8535,2151.8,2151.3,4.79002]
[1741408824574,0.92976,2151.5,2151.3,3.8602]
[1741408824974,0.92976,2151.5,2151.3,4.79003]
[1741408825377,0.92973,2151.6,2151.4,0.92979]
[1741408825574,1.8535,2151.8,2151.3,3.8602]
[1741408825879,0.92972,2151.6,2151.4,0.92977]
[1741408826074,0.92975,2151.5,2151.3,4.79]
[1741408826272,0.92975,2151.5,2151.3,3.8602]
[1741408826472,0.92976,2151.5,2151.3,4.79003]
[1741408826672,0.92976,2151.5,2151.3,3.8602]
[1741408826878,0.92979,2151.4,2151.3,3.9302]
[1741408827180,0.92976,2151.5,2151.3,4.86002]
[1741408827380,1.8535,2151.8,2151.3,3.9302]
[1741408827781,0.92977,2151.5,2151.3,4.86001]
[1741408828486,0.92978,2151.5,2151.3,3.9302]
[1741408828781,0.92978,2151.5,2151.3,4.86003]
[1741408829482,0.92977,2151.5,2151.3,4.86003]
[1741408829887,1.8535,2151.8,2151.3,4.86003]
[1741408829888,0.92979,2151.4,2151.3,3.9302]
[1741408830371,1.8535,2151.8,2151.3,4.86003]
[1741408830578,0.92978,2151.5,2151.3,4.86003]
[1741408831381,1.2403,2151.8,2151.3,3.9302]
[1741408831679,2.10597983,2151.9,2151.3,3.9302]
[1741408831884,2.10597983,2151.9,2151.5,0.92973]
[1741408831885,0.92968,2151.7,2151.5,0.92973]
[1741408832086,0.92968,2151.7,2151.6,0.6084]
[1741408834185,0.00697983,2151.9,2151.6,0.6084]
[1741408834381,0.00697983,2151.9,2151.8,0.92962]
[1741408834682,0.00697983,2151.9,2151.7,2.18033]
[1741408834880,0.93656983,2151.9,2151.7,2.18033]
[1741408835082,0.93656983,2151.9,2151.8,0.59332413]
[1741408835284,0.93654983,2151.9,2151.8,0.59332413]
[1741408835479,0.00697983,2151.9,2151.8,1.52294413]
[1741408836080,1.2769,2152.4,2152.2,0.92944]
[1741408836286,2.737,2152.6,2152.2,0.92943]
[1741408836489,0.92938,2152.4,2152.3,0.6044]
[1741408836790,0.92944,2152.3,2152.1,4.13727]
[1741408838283,0.92944,2152.2,2152.1,3.2078]
[1741408838487,0.6667,2152.3,2152.0,0.00697983]
[1741408838689,0.92946,2152.2,2152.0,0.00697983]
[1741408839280,0.6667,2152.3,2152.0,0.00697983]
[1741408839486,0.6667,2152.3,2152.2,0.92944]
[1741408839686,0.93635983,2152.4,2152.1,4.76846]
[1741408839987,0.92942,2152.3,2152.1,4.76846]
[1741408840189,0.92944,2152.2,2152.1,3.839]
[1741408842594,0.92944,2152.2,2152.1,3.2078]
[1741408842997,0.92949,2152.1,2152.0,0.00697983]
[1741408843188,2.20419,2152.1,2152.0,0.00697983]
[1741408845194,1.57579,2152.1,2152.0,0.00697983]
[1741408845500,0.6463,2152.1,2152.0,0.00697983]
[1741408845697,1.57579,2152.1,2152.0,0.00697983]
[1741408845994,1.53206,2152.2,2152.0,0.93648983]
[1741408846295,0.6026,2152.2,2152.0,0.93648983]
[1741408846496,1.53206,2152.2,2152.0,0.93648983]
[1741408847588,0.92946,2152.2,2152.0,0.00697983]
[1741408847792,0.92946,2152.2,2152.0,0.93647983]
[1741408849693,1.25437983,2152.4,2152.0,0.00697983]
[1741408849892,0.92944,2152.3,2152.1,0.92948]
[1741408850094,0.92944,2152.2,2152.0,0.00697983]
[1741408850398,0.92944,2152.2,2152.1,0.92949]
[1741408850697,0.92944,2152.2,2152.0,0.93647983]
[1741408850899,0.92944,2152.2,2152.1,0.92949]
[1741408851793,0.92944,2152.2,2152.0,0.93647983]
[1741408852598,0.92949,2152.1,2152.0,0.93649983]
[1741408852795,0.651,2152.1,2152.0,0.93649983]
[1741408853897,0.651,2152.1,2152.0,0.94649983]
[1741408855692,1.25437983,2152.4,2152.0,0.01697983]
[1741408855900,0.92942,2152.3,2152.1,1.55915]
[1741408856900,0.92942,2152.3,2152.2,0.92944]
[1741408857797,1.25437983,2152.4,2152.3,0.9294]
[1741408858490,1.25437983,2152.4,2152.3,1.52255705]
[1741408863718,1.25437983,2152.4,2152.3,1.53255705]
[1741408864004,0.61237983,2152.4,2152.3,1.53255705]
[1741408864305,0.00697983,2152.4,2152.3,1.53255705]
[1741408864506,1.306,2152.7,2152.6,0.92927]
[1741408864707,3.01405,2153.2,2153.0,0.9291]
[1741408865004,1.58832,2153.0,2152.9,3.2078]
[1741408869914,0.6592,2153.0,2152.6,4.13706]
[1741408870111,0.92921,2152.8,2152.6,4.13706]
[1741408870414,0.92923,2152.7,2152.6,3.2078]
[1741408870615,0.641,2152.7,2152.6,3.2078]
[1741408870909,1.57023,2152.7,2152.6,3.2078]
[1741408871412,0.641,2152.7,2152.3,3.2078]
[1741408871609,0.92933,2152.5,2152.3,4.27718]
[1741408872013,0.6338,2152.6,2152.3,3.3478]
[1741408872207,0.6338,2152.6,2152.5,0.92931]
[1741408873114,0.6338,2152.6,2152.3,3.2078]
[1741408873420,0.6338,2152.6,2152.5,0.92931]
[1741408873605,1.57023,2152.7,2152.5,0.92931]
[1741408873807,1.5803,2152.8,2152.5,0.05]
[1741408874011,0.6318,2152.7,2152.6,0.92927]
[1741408876122,1.56103,2152.7,2152.5,0.92928]
[1741408876322,0.6318,2152.7,2152.6,0.92927]
[1741408876519,1.56103,2152.7,2152.6,0.92927]
[1741408876732,0.92934,2152.5,2152.3,4.13718]
[1741408877024,0.92934,2152.5,2152.3,4.25718]
[1741408877322,0.6318,2152.7,2152.4,0.92934]
[1741408877521,0.6318,2152.7,2152.4,0.95934]
[1741408877821,1.56105,2152.7,2152.5,0.92929]
[1741408878021,1.56105,2152.7,2152.5,2.20379]
[1741408878223,0.6318,2152.7,2152.5,2.20379]
[1741408878624,1.56107,2152.7,2152.5,2.20379]
[1741408879019,0.6318,2152.7,2152.5,2.20379]
[1741408879227,0.92927,2152.6,2152.5,2.20379]
[1741408879420,0.92927,2152.6,2152.5,1.2745]
[1741408880123,0.92935,2152.5,2152.3,4.13717]
[1741408880331,0.92936,2152.4,2152.3,4.6048]
[1741408880527,0.92936,2152.4,2152.3,3.9724]
[1741408880728,0.92936,2152.4,2152.3,3.3278]
[1741408880928,0.92936,2152.4,2152.3,3.91001958]
[1741408883430,0.92936,2152.4,2152.3,3.2078]
[1741408883626,0.92949,2152.1,2152.0,0.00697983]
[1741408883933,0.92949,2152.1,2152.0,0.60923915]
[1741408884428,0.92949,2152.1,2152.0,0.00697983]
[1741408885834,1.57669,2152.1,2152.0,0.00697983]
[1741408887530,1.57669,2152.1,2151.8,3.2078]
[1741408887531,0.92957,2151.9,2151.8,3.2078]
[1741408888835,0.92966,2151.7,2151.6,0.00697983]
[1741408889623,0.92979,2151.4,2151.3,3.2078]
[1741408889824,0.92979,2151.4,2151.3,3.3278]
[1741408890427,0.6311,2151.7,2151.3,3.3278]
[1741408890630,1.56077,2151.7,2151.4,0.92976]
[1741408890829,1.56077,2151.7,2151.4,2.24296]
[1741408891023,1.56077,2151.7,2151.5,0.92974]
[1741408892633,5.9033,2151.8,2151.4,1.2732]
[1741408892837,2.6955,2151.8,2151.4,1.3132]
[1741408893134,1.5619,2151.9,2151.7,0.92966]
[1741408893333,1.5619,2151.9,2151.7,0.96966]
[1741408893525,1.2893,2152.0,2151.7,0.04]
[1741408894124,0.6378,2152.0,2151.9,0.92957]
[1741408894334,0.00697983,2152.1,2151.9,0.92957]
[1741408894335,0.93647983,2152.1,2151.9,0.92957]
[1741408894934,0.00697983,2152.1,2152.0,0.92953]
[1741408895235,0.6243,2152.5,2152.4,0.92936]
[1741408895536,0.6515,2152.6,2152.4,0.92936]
[1741408895738,0.6515,2152.6,2152.2,3.2078]
[1741408895935,3.01426,2152.7,2152.4,0.92933]
[1741408896230,3.01426,2152.7,2152.4,0.92934]
[1741408896829,3.01426,2152.7,2152.5,0.9293]
[1741408897030,0.92928,2152.6,2152.4,0.92933]
[1741408897232,2.085,2152.7,2152.3,1.27027983]
[1741408897433,2.085,2152.7,2152.4,0.92933]
[1741408897628,0.00697983,2152.8,2152.4,0.92933]
[1741408897629,0.00697983,2152.8,2152.5,3.2078]
[1741408897836,0.00697983,2152.8,2152.7,0.92923]
[1741408898136,0.00697983,2152.8,2152.7,0.93923]
[1741408903837,0.6293,2153.3,2153.2,0.92901]
[1741408904235,0.6293,2153.3,2153.0,3.2078]
[1741408904544,0.6293,2153.3,2153.0,3.2578]
[1741408904743,0.6293,2153.3,2153.2,0.92901]
[1741408905344,0.6229,2153.7,2153.0,3.2078]
[1741408905545,0.92885,2153.6,2153.4,0.92892]
[1741408905846,0.6229,2153.7,2153.0,3.2078]
[1741408906042,0.92896,2153.4,2153.1,0.92906]
[1741408906235,0.6222,2153.6,2153.1,0.03]
[1741408906443,0.92904,2153.2,2153.0,4.13689]
[1741408906847,0.92899,2153.3,2153.1,0.92904]
[1741408907044,0.92895,2153.4,2153.2,0.92901]
[1741408907244,0.92895,2153.4,2153.2,0.929]
[1741408908346,0.6222,2153.6,2153.0,3.2078]
[1741408908544,0.92906,2153.1,2153.0,3.2078]
[1741408908847,2.084,2153.5,2153.0,3.2078]
[1741408909046,0.92904,2153.2,2153.0,4.13689]
[1741408909635,0.92904,2153.2,2153.0,3.2078]
[1741408909841,0.92904,2153.2,2153.0,4.13686]
[1741408910444,0.92904,2153.2,2153.0,3.2078]
[1741408910644,1.55286,2153.1,2153.0,3.2078]
[1741408910846,2.18126,2153.1,2153.0,3.2078]
[1741408911948,3.3362,2153.1,2152.7,3.2078]
[1741408912142,0.92918,2152.8,2152.7,3.2078]
[1741408912641,3.2078,2152.9,2152.3,4.14415983]
[1741408912841,0.92936,2152.4,2152.3,3.24477983]
[1741408913042,0.92936,2152.4,2152.3,3.21477983]
[1741408914552,0.92936,2152.4,2152.3,0.00697983]
[1741408915743,0.92949,2152.1,2152.0,3.2078]
[1741408916540,3.2078,2152.1,2151.6,3.2078]
[1741408916849,0.92966,2151.7,2151.6,3.21477983]
[1741408918050,2.085,2151.9,2151.6,3.21477983]
[1741408918257,0.92966,2151.7,2151.6,3.21477983]
[1741408919249,4.13746,2151.7,2151.6,0.00697983]
[1741408920657,0.92966,2151.7,2151.6,0.00697983]
[1741408920850,1.55263,2151.8,2151.6,0.00697983]
[1741408921046,2.085,2151.9,2151.7,0.92966]
[1741408921348,0.92962,2151.8,2151.6,4.14445983]
[1741408921554,2.085,2151.9,2151.7,0.92964]
[1741408921854,0.92962,2151.8,2151.7,0.03]
[1741408922056,0.92962,2151.8,2151.7,0.02]
[1741408922252,3.01459,2151.9,2151.7,0.02]
[1741408922448,2.085,2151.9,2151.7,3.2278]
[1741408922649,0.92962,2151.8,2151.7,3.8567]
[1741408923256,3.0146,2151.9,2151.7,3.8567]
[1741408923652,0.92966,2151.7,2151.6,0.00697983]
[1741408926160,0.92979,2151.4,2151.3,3.2078]
[1741408926961,2.085,2151.5,2151.3,3.2078]
[1741408927662,0.92979,2151.4,2151.3,3.2078]
[1741408929462,1.58019,2151.4,2151.3,3.2078]
[1741408930162,0.6504,2151.4,2151.2,0.00697983]
[1741408930364,0.92983,2151.3,2151.2,0.00697983]
[1741408930562,4.13763,2151.3,2151.2,0.00697983]
[1741408933561,8.13763,2151.3,2151.2,0.00697983]
[1741408935371,4.13763,2151.3,2151.2,0.00697983]
[1741408937666,6.22263,2151.3,2151.2,0.00697983]
[1741408937864,1.2541,2151.6,2151.2,0.00697983]
[1741408938065,0.6385,2151.6,2151.2,3.92727983]
[1741408938259,0.92981,2151.4,2151.2,3.92727983]
[1741408938460,0.92981,2151.4,2151.2,0.71947983]
[1741408938861,0.6385,2151.6,2151.2,0.71947983]
[1741408939071,0.92982,2151.4,2151.2,0.71947983]
[1741408939563,0.6385,2151.6,2151.2,3.92727983]
[1741408939766,0.92974,2151.6,2151.3,0.92982]
[1741408940060,0.92976,2151.5,2151.2,4.77712983]
[1741408940266,0.92976,2151.5,2151.3,0.92982]
[1741408940467,0.92976,2151.5,2151.2,4.77713983]
[1741408940663,0.92976,2151.5,2151.3,0.92983]
[1741408940870,0.92975,2151.5,2151.3,0.92983]
[1741408941372,0.92974,2151.6,2151.4,0.92978]
[1741408941669,0.92975,2151.5,2151.3,0.92981]
[1741408941867,0.92972,2151.6,2151.4,0.92979]
[1741408942069,0.92968,2151.7,2151.5,0.92974]
[1741408942264,2.086,2151.8,2151.2,4.46587983]
[1741408942568,3.01465,2151.8,2151.5,0.92972]
[1741408942770,3.01465,2151.8,2151.6,0.6169]
[1741408942961,3.01465,2151.8,2151.7,0.6461]
[1741408943570,0.92979,2151.5,2151.2,4.76323983]
[1741408943772,2.085,2151.8,2151.3,1.263]
[1741408943969,0.92979,2151.4,2151.3,1.273]
[1741408944872,0.92976,2151.5,2151.3,1.273]
[1741408945272,2.085,2151.8,2151.3,1.273]
[1741408945473,0.92977,2151.5,2151.3,1.273]
[1741408946166,0.92979,2151.4,2151.3,1.273]
[1741408946368,0.92976,2151.5,2151.3,1.273]
[1741408947176,2.085,2151.8,2151.3,1.273]
[1741408947376,0.6414,2151.9,2151.3,1.273]
[1741408947675,3.65601,2151.9,2151.6,0.92969]
[1741408948070,0.6414,2151.9,2151.3,1.263]
[1741408948269,3.63555,2152.0,2151.5,3.2078]
[1741408948487,3.63555,2152.0,2151.7,0.92963]
[1741408948675,0.621,2152.0,2151.8,0.6469]
[1741408948874,3.02149983,2152.1,2151.8,1.5765]
[1741408949075,3.02149983,2152.1,2151.9,0.6088]
[1741408949273,0.92953,2152.0,2151.9,0.6088]
[1741408949582,3.02147983,2152.1,2151.9,0.6088]
[1741408949971,0.92953,2152.0,2151.9,0.6088]
[1741408950171,3.02148983,2152.1,2151.9,0.6088]
[1741408950374,3.02147983,2152.1,2151.9,1.53837]
[1741408950678,0.92953,2152.0,2151.9,0.6088]
[1741408951081,3.02148983,2152.1,2151.9,0.6088]
[1741408951280,3.02148983,2152.1,2151.9,1.53836]
[1741408951883,0.00697983,2152.1,2151.9,0.6088]
[1741408952276,0.00697983,2152.1,2151.9,1.53834]
[1741408952675,0.92953,2152.0,2151.9,0.6088]
[1741408953082,0.92953,2152.0,2151.8,3.8547]
[1741408953283,0.92953,2152.0,2151.8,3.8947]
[1741408953686,0.92953,2152.0,2151.8,5.46381]
[1741408954187,0.92957,2151.9,2151.8,1.2864]
[1741408954479,0.92963,2151.8,2151.5,4.13752]
[1741408954684,0.92966,2151.8,2151.5,4.21752]
[1741408955285,1.9237,2152.0,2151.5,4.21752]
[1741408955583,0.9297,2151.6,2151.5,3.2078]
[1741408957178,0.92969,2151.7,2151.5,3.2078]
[1741408957377,2.085,2151.9,2151.6,0.9297]
[1741408957880,2.085,2151.9,2151.5,4.13751]
[1741408958082,0.92965,2151.8,2151.5,4.20751]
[1741408958276,0.92965,2151.8,2151.5,3.2778]
[1741408958484,3.01459,2151.9,2151.7,0.92966]
[1741408958679,3.01459,2151.9,2151.5,3.2778]
[1741408958680,3.0146,2151.9,2151.5,3.2078]
[1741408958881,2.085,2151.9,2151.5,3.2778]
[1741408959083,0.9297,2151.6,2151.5,3.2778]
[1741408959279,0.9297,2151.6,2151.5,3.2078]
[1741408959589,0.92968,2151.7,2151.5,4.13754]
[1741408959893,5.2928,2151.9,2151.5,4.13754]
[1741408959894,0.92964,2151.8,2151.5,4.13754]
[1741408960188,0.92964,2151.8,2151.6,0.92969]
[1741408960779,0.92964,2151.8,2151.5,4.13752]
[1741408960780,0.92962,2151.8,2151.5,4.13752]
[1741408960979,0.92962,2151.8,2151.5,4.22752]
[1741408961389,0.92966,2151.7,2151.5,4.22752]
[1741408962685,0.9297,2151.6,2151.5,3.2978]
[1741408963385,0.92968,2151.7,2151.5,4.22752]
[1741408964277,0.9297,2151.6,2151.5,3.2978]
[1741408965088,0.9297,2151.6,2151.5,3.2078]
[1741408966889,2.085,2151.9,2151.5,3.2078]
[1741408967192,0.92968,2151.7,2151.5,4.13752]
[1741408967491,0.9297,2151.6,2151.5,3.2078]
[1741408967893,0.92983,2151.3,2151.2,0.00697983]
[1741408968190,3.01483,2151.3,2151.2,0.00697983]
[1741408968991,2.085,2151.3,2151.2,0.00697983]